[Event "Titled Tuesday Blitz June 1 2021"]
[White "Lazavik, Denis"]
[Black "Chizhikov, Vladislav"]
[WhiteFideId "13515110"]
[BlackFideId "4178157"]
[WhiteElo "2436"]
[BlackElo "2265"]
[Result "1-0"]
[Round "04"]
[TimeControl "180+1"]
[Date "2021.06.01"]
[WhiteClock "0:01:34"]
[BlackClock "0:01:21"]

1. d4 {[%clk 0:03:00]}  d5 {[%clk 0:02:59]} 2. c4 {[%clk 0:03:00]}  e5 {[%clk 0:02:59]} 3. dxe5 {[%clk 0:02:57]}  d4 {[%clk 0:03:00]} 4. Nf3 {[%clk 0:02:55]}  Nc6 {[%clk 0:03:01]} 5. a3 {[%clk 0:02:55]}  Bg4 {[%clk 0:02:58]} 6. Nbd2 {[%clk 0:02:43]}  Qe7 {[%clk 0:02:57]} 7. Qa4 {[%clk 0:02:22]}  O-O-O {[%clk 0:02:56]} 8. g3 {[%clk 0:02:10]}  Kb8 {[%clk 0:02:47]} 9. Bg2 {[%clk 0:02:05]}  Nxe5 {[%clk 0:02:45]} 10. O-O {[%clk 0:02:06]}  Nf6 {[%clk 0:02:44]} 11. Nxe5 {[%clk 0:02:01]}  Qxe5 {[%clk 0:02:43]} 12. Qb3 {[%clk 0:02:02]}  Bc8 {[%clk 0:02:40]} 13. Nf3 {[%clk 0:01:59]}  Qh5 {[%clk 0:02:39]} 14. Bf4 {[%clk 0:01:56]}  Bd6 {[%clk 0:02:38]} 15. Nxd4 {[%clk 0:01:50]}  Ka8 {[%clk 0:01:38]} 16. Bxd6 {[%clk 0:01:38]}  Rxd6 {[%clk 0:01:37]} 17. Nb5 {[%clk 0:01:39]}  Rd7 {[%clk 0:01:31]} 18. Rad1 {[%clk 0:01:36]}  Re7 {[%clk 0:01:23]} 19. Qa4 {[%clk 0:01:36]}  a6 {[%clk 0:01:21]} 20. Qxa6+ {[%clk 0:01:34]} 1-0


[Site "https://www.chess.com"]

[Event "Titled Tuesday Blitz June 1 2021"]
[White "Le, Tuan Minh"]
[Black "Dang, Hoang Son"]
[WhiteFideId "12401153"]
[BlackFideId "12402435"]
[WhiteElo "2450"]
[BlackElo "2248"]
[Result "1-0"]
[Round "04"]
[TimeControl "180+1"]
[Date "2021.06.01"]
[WhiteClock "0:00:56"]
[BlackClock "0:00:38"]

1. d4 {[%clk 0:02:48]}  Nf6 {[%clk 0:03:00]} 2. Nf3 {[%clk 0:02:48]}  g6 {[%clk 0:03:00]} 3. Bg5 {[%clk 0:02:49]}  Bg7 {[%clk 0:03:00]} 4. Nbd2 {[%clk 0:02:50]}  O-O {[%clk 0:03:01]} 5. c3 {[%clk 0:02:50]}  d5 {[%clk 0:03:01]} 6. e3 {[%clk 0:02:51]}  c6 {[%clk 0:03:02]} 7. Bd3 {[%clk 0:02:51]}  Nbd7 {[%clk 0:03:00]} 8. e4 {[%clk 0:02:47]}  dxe4 {[%clk 0:02:59]} 9. Nxe4 {[%clk 0:02:48]}  Qc7 {[%clk 0:02:56]} 10. Nxf6+ {[%clk 0:02:44]}  exf6 {[%clk 0:02:54]} 11. Be3 {[%clk 0:02:42]}  Re8 {[%clk 0:02:53]} 12. O-O {[%clk 0:02:41]}  Nb6 {[%clk 0:02:53]} 13. h3 {[%clk 0:02:41]}  Be6 {[%clk 0:02:52]} 14. Re1 {[%clk 0:02:41]}  Rad8 {[%clk 0:02:52]} 15. Nd2 {[%clk 0:02:34]}  c5 {[%clk 0:02:45]} 16. Bb5 {[%clk 0:02:28]}  Bd7 {[%clk 0:02:31]} 17. Bxd7 {[%clk 0:02:14]}  Rxd7 {[%clk 0:02:03]} 18. Qf3 {[%clk 0:01:43]}  Nd5 {[%clk 0:01:55]} 19. dxc5 {[%clk 0:01:42]}  Nxe3 {[%clk 0:01:54]} 20. Rxe3 {[%clk 0:01:43]}  Red8 {[%clk 0:01:45]} 21. Nb3 {[%clk 0:01:39]}  f5 {[%clk 0:01:26]} 22. Rae1 {[%clk 0:01:38]}  Bf8 {[%clk 0:01:24]} 23. Re5 {[%clk 0:01:32]}  Rd3 {[%clk 0:01:23]} 24. Qe2 {[%clk 0:01:25]}  a5 {[%clk 0:01:18]} 25. Nd4 {[%clk 0:01:16]}  R3xd4 {[%clk 0:00:59]} 26. cxd4 {[%clk 0:01:17]}  Rxd4 {[%clk 0:00:59]} 27. Qe3 {[%clk 0:01:13]}  Rb4 {[%clk 0:00:58]} 28. Re8 {[%clk 0:01:11]}  Kg7 {[%clk 0:00:43]} 29. Qc3+ {[%clk 0:00:58]}  f6 {[%clk 0:00:38]} 30. Rxf8 {[%clk 0:00:56]} 1-0


[Site "https://www.chess.com"]

[Event "Titled Tuesday Blitz June 1 2021"]
[White "Lehtosaari, Mauri"]
[Black "Cerveny, Martin"]
[WhiteFideId "501999"]
[BlackFideId "321141"]
[WhiteElo "2458"]
[BlackElo "2269"]
[Result "1/2-1/2"]
[Round "04"]
[TimeControl "180+1"]
[Date "2021.06.01"]
[WhiteClock "0:00:11"]
[BlackClock "0:00:21"]

1. d4 {[%clk 0:03:00]}  d5 {[%clk 0:02:59]} 2. Nf3 {[%clk 0:03:01]}  Nf6 {[%clk 0:02:59]} 3. Bg5 {[%clk 0:02:57]}  Ne4 {[%clk 0:02:56]} 4. Bf4 {[%clk 0:02:52]}  Bf5 {[%clk 0:02:56]} 5. e3 {[%clk 0:02:36]}  Nd7 {[%clk 0:02:55]} 6. Nbd2 {[%clk 0:02:36]}  Nxd2 {[%clk 0:02:54]} 7. Qxd2 {[%clk 0:02:37]}  e6 {[%clk 0:02:52]} 8. Be2 {[%clk 0:02:30]}  Be7 {[%clk 0:02:50]} 9. h3 {[%clk 0:02:30]}  O-O {[%clk 0:02:49]} 10. O-O {[%clk 0:02:28]}  c5 {[%clk 0:02:49]} 11. c3 {[%clk 0:02:28]}  Qb6 {[%clk 0:02:48]} 12. Ne5 {[%clk 0:02:25]}  Nxe5 {[%clk 0:02:45]} 13. Bxe5 {[%clk 0:02:25]}  a5 {[%clk 0:02:40]} 14. a4 {[%clk 0:02:21]}  Bg6 {[%clk 0:02:11]} 15. Bd3 {[%clk 0:01:46]}  Bxd3 {[%clk 0:02:06]} 16. Qxd3 {[%clk 0:01:47]}  Rac8 {[%clk 0:02:06]} 17. Qb5 {[%clk 0:01:39]}  Qxb5 {[%clk 0:02:01]} 18. axb5 {[%clk 0:01:40]}  b6 {[%clk 0:02:00]} 19. Rfd1 {[%clk 0:01:27]}  f6 {[%clk 0:02:00]} 20. Bg3 {[%clk 0:01:26]}  cxd4 {[%clk 0:01:59]} 21. exd4 {[%clk 0:01:24]}  Kf7 {[%clk 0:01:58]} 22. Re1 {[%clk 0:01:24]}  Rc4 {[%clk 0:01:56]} 23. Re2 {[%clk 0:01:21]}  Re8 {[%clk 0:01:54]} 24. Kf1 {[%clk 0:01:17]}  h5 {[%clk 0:01:41]} 25. Ke1 {[%clk 0:01:08]}  a4 {[%clk 0:01:30]} 26. Kd2 {[%clk 0:01:06]}  g5 {[%clk 0:01:24]} 27. Kd3 {[%clk 0:01:05]}  f5 {[%clk 0:01:18]} 28. Be5 {[%clk 0:01:05]}  Rec8 {[%clk 0:01:15]} 29. Rc2 {[%clk 0:01:00]}  Ra8 {[%clk 0:01:07]} 30. b3 {[%clk 0:00:28]}  Rcc8 {[%clk 0:00:45]} 31. Rxa4 {[%clk 0:00:21]}  Rxa4 {[%clk 0:00:43]} 32. bxa4 {[%clk 0:00:22]}  Ra8 {[%clk 0:00:43]} 33. Ra2 {[%clk 0:00:22]}  Ke8 {[%clk 0:00:42]} 34. Bc7 {[%clk 0:00:21]}  Bd8 {[%clk 0:00:40]} 35. Bxd8 {[%clk 0:00:21]}  Kxd8 {[%clk 0:00:41]} 36. c4 {[%clk 0:00:21]}  dxc4+ {[%clk 0:00:41]} 37. Kxc4 {[%clk 0:00:22]}  Kd7 {[%clk 0:00:41]} 38. Kb4 {[%clk 0:00:22]}  Kc7 {[%clk 0:00:34]} 39. a5 {[%clk 0:00:21]}  bxa5+ {[%clk 0:00:33]} 40. Rxa5 {[%clk 0:00:22]}  Rd8 {[%clk 0:00:33]} 41. Kc4 {[%clk 0:00:22]}  Kb7 {[%clk 0:00:25]} 42. Ra6 {[%clk 0:00:20]}  Rc8+ {[%clk 0:00:24]} 43. Kb3 {[%clk 0:00:19]}  Rd8 {[%clk 0:00:24]} 44. Rxe6 {[%clk 0:00:18]}  Rxd4 {[%clk 0:00:23]} 45. Re5 {[%clk 0:00:18]}  Rf4 {[%clk 0:00:23]} 46. f3 {[%clk 0:00:19]}  Kb6 {[%clk 0:00:23]} 47. Kc3 {[%clk 0:00:18]}  g4 {[%clk 0:00:20]} 48. hxg4 {[%clk 0:00:18]}  hxg4 {[%clk 0:00:20]} 49. fxg4 {[%clk 0:00:13]}  Rxg4 {[%clk 0:00:20]} 50. Rxf5 {[%clk 0:00:11]}  Rxg2 {[%clk 0:00:21]} 1/2-1/2


[Site "https://www.chess.com"]

[Event "Titled Tuesday Blitz June 1 2021"]
[White "Lysyj, Igor"]
[Black "Andreev, Eduard"]
[WhiteFideId "4150120"]
[BlackFideId "14103400"]
[WhiteElo "2660"]
[BlackElo "2418"]
[Result "1-0"]
[Round "04"]
[TimeControl "180+1"]
[Date "2021.06.01"]
[WhiteClock "0:01:29"]
[BlackClock "0:00:43"]

1. d4 {[%clk 0:03:00]}  Nf6 {[%clk 0:02:59]} 2. c4 {[%clk 0:03:00]}  e6 {[%clk 0:02:59]} 3. Nf3 {[%clk 0:02:59]}  c5 {[%clk 0:02:58]} 4. e3 {[%clk 0:02:56]}  cxd4 {[%clk 0:02:56]} 5. exd4 {[%clk 0:02:56]}  d5 {[%clk 0:02:55]} 6. Nc3 {[%clk 0:02:55]}  Bb4 {[%clk 0:02:55]} 7. cxd5 {[%clk 0:02:54]}  Nxd5 {[%clk 0:02:54]} 8. Bd2 {[%clk 0:02:55]}  Nc6 {[%clk 0:02:50]} 9. Bd3 {[%clk 0:02:54]}  Be7 {[%clk 0:02:46]} 10. O-O {[%clk 0:02:53]}  O-O {[%clk 0:02:44]} 11. Qe2 {[%clk 0:02:45]}  Bf6 {[%clk 0:02:41]} 12. Qe4 {[%clk 0:02:45]}  g6 {[%clk 0:02:41]} 13. Bh6 {[%clk 0:02:44]}  Re8 {[%clk 0:02:39]} 14. Rad1 {[%clk 0:02:42]}  Nxc3 {[%clk 0:02:28]} 15. bxc3 {[%clk 0:02:42]}  Bd7 {[%clk 0:02:26]} 16. Rfe1 {[%clk 0:02:39]}  Qa5 {[%clk 0:02:23]} 17. Qf4 {[%clk 0:02:37]}  Bg7 {[%clk 0:02:08]} 18. Ng5 {[%clk 0:02:27]}  f6 {[%clk 0:01:49]} 19. Ne4 {[%clk 0:02:19]}  Rf8 {[%clk 0:01:48]} 20. Bxg7 {[%clk 0:02:16]}  Kxg7 {[%clk 0:01:47]} 21. Nc5 {[%clk 0:02:15]}  Rad8 {[%clk 0:01:25]} 22. Nxb7 {[%clk 0:02:12]}  Qxc3 {[%clk 0:01:21]} 23. Nxd8 {[%clk 0:02:12]}  Rxd8 {[%clk 0:01:16]} 24. Qc7 {[%clk 0:02:07]}  Qa5 {[%clk 0:01:04]} 25. Qxa5 {[%clk 0:01:36]}  Nxa5 {[%clk 0:01:03]} 26. d5 {[%clk 0:01:35]}  Ba4 {[%clk 0:00:49]} 27. dxe6 {[%clk 0:01:29]}  Bxd1 {[%clk 0:00:44]} 28. e7 {[%clk 0:01:29]}  Re8 {[%clk 0:00:43]} 29. Bb5 {[%clk 0:01:29]} 1-0


[Site "https://www.chess.com"]

[Event "Titled Tuesday Blitz June 1 2021"]
[White "Martinez Alcantara, Jose Eduardo"]
[Black "Urazayev, Arystanbek"]
[WhiteFideId "3805662"]
[BlackFideId "13709810"]
[WhiteElo "2690"]
[BlackElo "2321"]
[Result "0-1"]
[Round "04"]
[TimeControl "180+1"]
[Date "2021.06.01"]
[WhiteClock "0:00:02"]
[BlackClock "0:00:43"]

1. e4 {[%clk 0:03:00]}  c5 {[%clk 0:03:00]} 2. Nf3 {[%clk 0:03:01]}  e6 {[%clk 0:03:01]} 3. g3 {[%clk 0:02:56]}  Nc6 {[%clk 0:02:59]} 4. Bg2 {[%clk 0:02:56]}  Nf6 {[%clk 0:03:00]} 5. Qe2 {[%clk 0:02:55]}  Be7 {[%clk 0:03:00]} 6. O-O {[%clk 0:02:54]}  d5 {[%clk 0:03:01]} 7. e5 {[%clk 0:02:48]}  Nd7 {[%clk 0:03:01]} 8. c3 {[%clk 0:02:48]}  O-O {[%clk 0:02:56]} 9. d4 {[%clk 0:02:48]}  a5 {[%clk 0:02:48]} 10. Be3 {[%clk 0:02:36]}  b6 {[%clk 0:02:48]} 11. Rd1 {[%clk 0:02:35]}  Ba6 {[%clk 0:02:46]} 12. Qd2 {[%clk 0:02:32]}  f6 {[%clk 0:02:44]} 13. Bh3 {[%clk 0:02:16]}  fxe5 {[%clk 0:02:19]} 14. Bxe6+ {[%clk 0:02:16]}  Kh8 {[%clk 0:02:20]} 15. Bxd5 {[%clk 0:02:16]}  Qc7 {[%clk 0:02:20]} 16. Na3 {[%clk 0:01:25]}  exd4 {[%clk 0:02:18]} 17. cxd4 {[%clk 0:01:17]}  Nf6 {[%clk 0:02:17]} 18. Bf4 {[%clk 0:01:03]}  Qc8 {[%clk 0:02:08]} 19. Bxc6 {[%clk 0:01:00]}  Qxc6 {[%clk 0:02:09]} 20. d5 {[%clk 0:01:00]}  Qe8 {[%clk 0:01:59]} 21. Re1 {[%clk 0:00:55]}  Qh5 {[%clk 0:01:54]} 22. Ng5 {[%clk 0:00:40]}  Ng4 {[%clk 0:01:43]} 23. h3 {[%clk 0:00:38]}  Bxg5 {[%clk 0:01:43]} 24. hxg4 {[%clk 0:00:35]}  Bxf4 {[%clk 0:01:43]} 25. Qxf4 {[%clk 0:00:33]}  Qxd5 {[%clk 0:01:41]} 26. Qe4 {[%clk 0:00:33]}  Qf7 {[%clk 0:01:35]} 27. Qf5 {[%clk 0:00:28]}  Qxf5 {[%clk 0:01:32]} 28. gxf5 {[%clk 0:00:29]}  Rxf5 {[%clk 0:01:33]} 29. Rad1 {[%clk 0:00:29]}  Raf8 {[%clk 0:01:28]} 30. Rd2 {[%clk 0:00:29]}  h6 {[%clk 0:01:23]} 31. Nc2 {[%clk 0:00:26]}  Bb5 {[%clk 0:01:12]} 32. Re6 {[%clk 0:00:22]}  R5f6 {[%clk 0:01:11]} 33. Re7 {[%clk 0:00:19]}  Re8 {[%clk 0:01:08]} 34. Rxe8+ {[%clk 0:00:12]}  Bxe8 {[%clk 0:01:08]} 35. Ne3 {[%clk 0:00:13]}  Kh7 {[%clk 0:01:06]} 36. Rd8 {[%clk 0:00:13]}  Bc6 {[%clk 0:01:04]} 37. Rb8 {[%clk 0:00:12]}  Bf3 {[%clk 0:01:05]} 38. Kh2 {[%clk 0:00:12]}  h5 {[%clk 0:01:04]} 39. Rd8 {[%clk 0:00:10]}  g5 {[%clk 0:01:02]} 40. a3 {[%clk 0:00:10]}  g4 {[%clk 0:01:01]} 41. Rd2 {[%clk 0:00:10]}  b5 {[%clk 0:00:58]} 42. Rd7+ {[%clk 0:00:07]}  Kg6 {[%clk 0:00:58]} 43. Rd8 {[%clk 0:00:06]}  b4 {[%clk 0:00:51]} 44. axb4 {[%clk 0:00:05]}  axb4 {[%clk 0:00:46]} 45. Rc8 {[%clk 0:00:05]}  Rc6 {[%clk 0:00:46]} 46. Rg8+ {[%clk 0:00:04]}  Kh7 {[%clk 0:00:46]} 47. Rd8 {[%clk 0:00:04]}  c4 {[%clk 0:00:45]} 48. Rd2 {[%clk 0:00:03]}  c3 {[%clk 0:00:45]} 49. bxc3 {[%clk 0:00:03]}  bxc3 {[%clk 0:00:45]} 50. Rc2 {[%clk 0:00:03]}  Be4 {[%clk 0:00:45]} 51. Rc1 {[%clk 0:00:04]}  c2 {[%clk 0:00:46]} 52. Kg1 {[%clk 0:00:04]}  Rb6 {[%clk 0:00:43]} 53. Nxc2 {[%clk 0:00:01]}  Rc6 {[%clk 0:00:43]} 54. Re1 {[%clk 0:00:01]}  Bxc2 {[%clk 0:00:43]} 55. Rc1 {[%clk 0:00:02]}  Be4 {[%clk 0:00:44]} 56. Re1 {[%clk 0:00:02]}  Bf3 {[%clk 0:00:44]} 57. Ra1 {[%clk 0:00:03]}  Rd6 {[%clk 0:00:44]} 58. Kh2 {[%clk 0:00:01]}  Rd2 {[%clk 0:00:42]} 59. Ra7+ {[%clk 0:00:01]}  Kg8 {[%clk 0:00:43]} 60. Ra8+ {[%clk 0:00:02]}  Bxa8 {[%clk 0:00:43]} 0-1


[Site "https://www.chess.com"]

[Event "Titled Tuesday Blitz June 1 2021"]
[White "Moroni, Luca Jr"]
[Black "Viswanadha, Kesav"]
[WhiteFideId "865834"]
[BlackFideId "2059533"]
[WhiteElo "2491"]
[BlackElo "2191"]
[Result "0-1"]
[Round "04"]
[TimeControl "180+1"]
[Date "2021.06.01"]
[WhiteClock "0:00:04"]
[BlackClock "0:00:08"]

1. d4 {[%clk 0:03:00]}  Nf6 {[%clk 0:02:59]} 2. c4 {[%clk 0:02:59]}  e6 {[%clk 0:03:00]} 3. Nc3 {[%clk 0:02:59]}  Bb4 {[%clk 0:02:59]} 4. Nf3 {[%clk 0:02:59]}  c5 {[%clk 0:02:55]} 5. g3 {[%clk 0:02:58]}  cxd4 {[%clk 0:02:55]} 6. Nxd4 {[%clk 0:02:59]}  O-O {[%clk 0:02:55]} 7. Bg2 {[%clk 0:02:59]}  Nc6 {[%clk 0:02:54]} 8. O-O {[%clk 0:02:58]}  a6 {[%clk 0:02:48]} 9. Nc2 {[%clk 0:02:47]}  Be7 {[%clk 0:02:45]} 10. b3 {[%clk 0:02:34]}  Qc7 {[%clk 0:02:44]} 11. Bb2 {[%clk 0:02:33]}  b6 {[%clk 0:02:42]} 12. Rc1 {[%clk 0:02:32]}  Bb7 {[%clk 0:02:42]} 13. e4 {[%clk 0:02:22]}  Rac8 {[%clk 0:02:41]} 14. h3 {[%clk 0:02:17]}  Qb8 {[%clk 0:02:33]} 15. f4 {[%clk 0:02:15]}  d6 {[%clk 0:02:25]} 16. Ne3 {[%clk 0:02:05]}  b5 {[%clk 0:02:23]} 17. Kh2 {[%clk 0:01:49]}  Qa7 {[%clk 0:02:01]} 18. Qd2 {[%clk 0:01:37]}  bxc4 {[%clk 0:01:52]} 19. Nxc4 {[%clk 0:01:36]}  Rfd8 {[%clk 0:01:53]} 20. Rfd1 {[%clk 0:01:30]}  h6 {[%clk 0:01:48]} 21. Qe1 {[%clk 0:01:21]}  Ne8 {[%clk 0:01:36]} 22. Qe2 {[%clk 0:01:16]}  Nc7 {[%clk 0:01:32]} 23. Qg4 {[%clk 0:01:08]}  Bf8 {[%clk 0:01:28]} 24. Nxd6 {[%clk 0:00:48]}  Rxd6 {[%clk 0:01:03]} 25. Rxd6 {[%clk 0:00:46]}  h5 {[%clk 0:01:03]} 26. Qd1 {[%clk 0:00:29]}  Bxd6 {[%clk 0:00:57]} 27. Qxd6 {[%clk 0:00:30]}  Qf2 {[%clk 0:00:37]} 28. Nd1 {[%clk 0:00:30]}  Qe2 {[%clk 0:00:36]} 29. Ba1 {[%clk 0:00:11]}  Nb5 {[%clk 0:00:23]} 30. Qc5 {[%clk 0:00:09]}  Rd8 {[%clk 0:00:12]} 31. Nc3 {[%clk 0:00:07]}  Qd2 {[%clk 0:00:11]} 32. Rd1 {[%clk 0:00:06]}  Qxd1 {[%clk 0:00:11]} 33. Nxd1 {[%clk 0:00:06]}  Rxd1 {[%clk 0:00:12]} 34. Qc2 {[%clk 0:00:06]}  Rd7 {[%clk 0:00:11]} 35. a4 {[%clk 0:00:05]}  Nbd4 {[%clk 0:00:10]} 36. Bxd4 {[%clk 0:00:05]}  Nxd4 {[%clk 0:00:10]} 37. Qb2 {[%clk 0:00:05]}  f6 {[%clk 0:00:10]} 38. b4 {[%clk 0:00:05]}  e5 {[%clk 0:00:10]} 39. fxe5 {[%clk 0:00:05]}  fxe5 {[%clk 0:00:10]} 40. b5 {[%clk 0:00:05]}  axb5 {[%clk 0:00:10]} 41. axb5 {[%clk 0:00:06]}  Rc7 {[%clk 0:00:10]} 42. Qa2+ {[%clk 0:00:06]}  Kh7 {[%clk 0:00:10]} 43. h4 {[%clk 0:00:06]}  Rc2 {[%clk 0:00:10]} 44. Qf7 {[%clk 0:00:06]}  Bxe4 {[%clk 0:00:10]} 45. Qxh5+ {[%clk 0:00:06]}  Kg8 {[%clk 0:00:10]} 46. Qe8+ {[%clk 0:00:05]}  Kh7 {[%clk 0:00:10]} 47. Qh5+ {[%clk 0:00:05]}  Kg8 {[%clk 0:00:11]} 48. Qxe5 {[%clk 0:00:03]}  Nf3+ {[%clk 0:00:09]} 49. Kh3 {[%clk 0:00:03]}  Nxe5 {[%clk 0:00:10]} 50. Bxe4 {[%clk 0:00:03]}  Rb2 {[%clk 0:00:09]} 51. Bd5+ {[%clk 0:00:04]}  Kf8 {[%clk 0:00:08]} 52. h5 {[%clk 0:00:04]}  Rxb5 {[%clk 0:00:07]} 53. Be6 {[%clk 0:00:04]}  Nf3 {[%clk 0:00:06]} 54. Kg2 {[%clk 0:00:03]}  Ng5 {[%clk 0:00:07]} 55. Bg4 {[%clk 0:00:03]}  Rb2+ {[%clk 0:00:06]} 56. Kf1 {[%clk 0:00:03]}  Kg8 {[%clk 0:00:06]} 57. Bf5 {[%clk 0:00:03]}  Kh8 {[%clk 0:00:06]} 58. g4 {[%clk 0:00:03]}  Nf7 {[%clk 0:00:06]} 59. Ke1 {[%clk 0:00:03]}  Nh6 {[%clk 0:00:06]} 60. Be6 {[%clk 0:00:03]}  Rb4 {[%clk 0:00:07]} 61. Kf2 {[%clk 0:00:03]}  Nxg4+ {[%clk 0:00:07]} 62. Kg3 {[%clk 0:00:04]}  Nf6 {[%clk 0:00:08]} 0-1


[Site "https://www.chess.com"]

[Event "Titled Tuesday Blitz June 1 2021"]
[White "Moskalenko, Alexander"]
[Black "Andreikin, Dmitry"]
[WhiteFideId "4155351"]
[BlackFideId "4158814"]
[WhiteElo "2495"]
[BlackElo "2782"]
[Result "1-0"]
[Round "04"]
[TimeControl "180+1"]
[Date "2021.06.01"]
[WhiteClock "0:00:08"]
[BlackClock "0:00:03"]

1. e4 {[%clk 0:03:00]}  c5 {[%clk 0:02:59]} 2. Ne2 {[%clk 0:03:01]}  Nc6 {[%clk 0:02:57]} 3. g3 {[%clk 0:02:57]}  d5 {[%clk 0:02:52]} 4. Bg2 {[%clk 0:02:58]}  d4 {[%clk 0:02:52]} 5. O-O {[%clk 0:02:57]}  e5 {[%clk 0:02:51]} 6. d3 {[%clk 0:02:39]}  h5 {[%clk 0:02:51]} 7. f4 {[%clk 0:02:22]}  h4 {[%clk 0:02:51]} 8. f5 {[%clk 0:02:22]}  hxg3 {[%clk 0:02:48]} 9. hxg3 {[%clk 0:02:23]}  Be7 {[%clk 0:02:45]} 10. Nd2 {[%clk 0:02:21]}  Bg5 {[%clk 0:02:44]} 11. Nf3 {[%clk 0:02:18]}  Bxc1 {[%clk 0:02:44]} 12. Qxc1 {[%clk 0:02:19]}  f6 {[%clk 0:02:41]} 13. Nh4 {[%clk 0:02:15]}  Nge7 {[%clk 0:02:40]} 14. a4 {[%clk 0:02:04]}  Bd7 {[%clk 0:02:39]} 15. Kf2 {[%clk 0:02:04]}  Qb6 {[%clk 0:02:36]} 16. b3 {[%clk 0:02:02]}  O-O-O {[%clk 0:02:36]} 17. Rh1 {[%clk 0:02:02]}  Nb4 {[%clk 0:02:33]} 18. Qd2 {[%clk 0:02:00]}  Qc7 {[%clk 0:02:23]} 19. g4 {[%clk 0:01:57]}  a6 {[%clk 0:02:19]} 20. Ng3 {[%clk 0:01:57]}  Be8 {[%clk 0:02:14]} 21. Rac1 {[%clk 0:01:47]}  b5 {[%clk 0:02:10]} 22. axb5 {[%clk 0:01:46]}  axb5 {[%clk 0:02:11]} 23. Bf3 {[%clk 0:01:30]}  Kb7 {[%clk 0:02:03]} 24. Ra1 {[%clk 0:01:26]}  Nec6 {[%clk 0:01:49]} 25. Ng6 {[%clk 0:01:15]}  Rxh1 {[%clk 0:01:46]} 26. Rxh1 {[%clk 0:01:14]}  Ra8 {[%clk 0:01:46]} 27. Nf8 {[%clk 0:01:03]}  Ra2 {[%clk 0:01:42]} 28. Bd1 {[%clk 0:01:01]}  Qa5 {[%clk 0:01:35]} 29. Ne6 {[%clk 0:00:58]}  Nxc2 {[%clk 0:01:29]} 30. Qxa5 {[%clk 0:00:51]}  Nxa5 {[%clk 0:01:30]} 31. Rh7 {[%clk 0:00:21]}  Ne3+ {[%clk 0:01:21]} 32. Be2 {[%clk 0:00:22]}  Nxg4+ {[%clk 0:01:13]} 33. Kg1 {[%clk 0:00:22]}  Nxb3 {[%clk 0:01:02]} 34. Bxg4 {[%clk 0:00:18]}  c4 {[%clk 0:01:02]} 35. Nxg7 {[%clk 0:00:15]}  c3 {[%clk 0:00:58]} 36. Nxe8+ {[%clk 0:00:15]}  Kb6 {[%clk 0:00:58]} 37. Bd1 {[%clk 0:00:10]}  Ra1 {[%clk 0:00:57]} 38. Kf2 {[%clk 0:00:07]}  Rxd1 {[%clk 0:00:56]} 39. Ne2 {[%clk 0:00:08]}  c2 {[%clk 0:00:48]} 40. Nxf6 {[%clk 0:00:08]}  c1=Q {[%clk 0:00:29]} 41. Nd5+ {[%clk 0:00:09]}  Kc5 {[%clk 0:00:27]} 42. Rc7+ {[%clk 0:00:08]}  Kd6 {[%clk 0:00:26]} 43. Nxc1 {[%clk 0:00:08]}  Nxc1 {[%clk 0:00:26]} 44. f6 {[%clk 0:00:07]}  Nxd3+ {[%clk 0:00:07]} 45. Ke2 {[%clk 0:00:08]}  Re1+ {[%clk 0:00:07]} 46. Kxd3 {[%clk 0:00:08]}  Rf1 {[%clk 0:00:08]} 47. f7 {[%clk 0:00:08]}  b4 {[%clk 0:00:06]} 48. Rb7 {[%clk 0:00:07]}  b3 {[%clk 0:00:05]} 49. Rb6+ {[%clk 0:00:07]}  Kd7 {[%clk 0:00:05]} 50. Rf6 {[%clk 0:00:07]}  Rxf6 {[%clk 0:00:04]} 51. Nxf6+ {[%clk 0:00:07]}  Ke7 {[%clk 0:00:05]} 52. Ng4 {[%clk 0:00:08]}  b2 {[%clk 0:00:04]} 53. Kc2 {[%clk 0:00:07]}  d3+ {[%clk 0:00:02]} 54. Kxb2 {[%clk 0:00:07]}  Kxf7 {[%clk 0:00:03]} 55. Nxe5+ {[%clk 0:00:07]}  Kf6 {[%clk 0:00:03]} 56. Nxd3 {[%clk 0:00:08]} 1-0


[Site "https://www.chess.com"]

[Event "Titled Tuesday Blitz June 1 2021"]
[White "Murzin, Volodar"]
[Black "Abdusattorov, Nodirbek"]
[WhiteFideId "44155573"]
[BlackFideId "14204118"]
[WhiteElo "2541"]
[BlackElo "2662"]
[Result "0-1"]
[Round "04"]
[TimeControl "180+1"]
[Date "2021.06.01"]
[WhiteClock "0:00:01"]
[BlackClock "0:00:11"]

1. e4 {[%clk 0:03:00]}  c6 {[%clk 0:03:00]} 2. Nf3 {[%clk 0:02:58]}  d5 {[%clk 0:03:01]} 3. exd5 {[%clk 0:02:59]}  cxd5 {[%clk 0:03:01]} 4. Ne5 {[%clk 0:02:59]}  Nc6 {[%clk 0:02:53]} 5. Bb5 {[%clk 0:02:58]}  Bd7 {[%clk 0:02:54]} 6. Bxc6 {[%clk 0:02:58]}  Bxc6 {[%clk 0:02:50]} 7. O-O {[%clk 0:02:58]}  e6 {[%clk 0:02:49]} 8. d4 {[%clk 0:02:57]}  Bd6 {[%clk 0:02:47]} 9. Bf4 {[%clk 0:02:53]}  Ne7 {[%clk 0:02:44]} 10. Nd2 {[%clk 0:02:50]}  O-O {[%clk 0:02:42]} 11. Re1 {[%clk 0:02:46]}  Bb5 {[%clk 0:02:27]} 12. Qg4 {[%clk 0:02:41]}  Nf5 {[%clk 0:02:22]} 13. Bg3 {[%clk 0:02:10]}  f6 {[%clk 0:02:17]} 14. Nef3 {[%clk 0:02:09]}  Nxg3 {[%clk 0:02:17]} 15. Qxe6+ {[%clk 0:02:07]}  Kh8 {[%clk 0:02:15]} 16. hxg3 {[%clk 0:02:07]}  Bc6 {[%clk 0:02:07]} 17. c3 {[%clk 0:02:06]}  Qc7 {[%clk 0:02:05]} 18. Nf1 {[%clk 0:01:55]}  Rae8 {[%clk 0:02:04]} 19. Qf5 {[%clk 0:01:55]}  g6 {[%clk 0:02:01]} 20. Qd3 {[%clk 0:01:52]}  Kg7 {[%clk 0:01:53]} 21. Rxe8 {[%clk 0:01:41]}  Rxe8 {[%clk 0:01:54]} 22. Ne3 {[%clk 0:01:38]}  Qf7 {[%clk 0:01:53]} 23. Re1 {[%clk 0:01:36]}  Re4 {[%clk 0:01:47]} 24. Nd2 {[%clk 0:01:20]}  Re8 {[%clk 0:01:48]} 25. Nc2 {[%clk 0:01:17]}  Rd8 {[%clk 0:01:36]} 26. Nf3 {[%clk 0:01:08]}  Bd7 {[%clk 0:01:35]} 27. Ne3 {[%clk 0:00:54]}  Re8 {[%clk 0:01:35]} 28. Qd2 {[%clk 0:00:54]}  Re4 {[%clk 0:01:31]} 29. b3 {[%clk 0:00:41]}  b5 {[%clk 0:01:27]} 30. Qd3 {[%clk 0:00:34]}  Re8 {[%clk 0:01:20]} 31. Re2 {[%clk 0:00:30]}  Rc8 {[%clk 0:01:16]} 32. Rc2 {[%clk 0:00:26]}  a5 {[%clk 0:01:15]} 33. Qd2 {[%clk 0:00:09]}  h5 {[%clk 0:01:08]} 34. c4 {[%clk 0:00:07]}  Bb4 {[%clk 0:01:06]} 35. Qe2 {[%clk 0:00:07]}  bxc4 {[%clk 0:01:05]} 36. bxc4 {[%clk 0:00:08]}  dxc4 {[%clk 0:01:06]} 37. d5 {[%clk 0:00:07]}  c3 {[%clk 0:01:03]} 38. Nd4 {[%clk 0:00:07]}  Ba4 {[%clk 0:01:00]} 39. Qa6 {[%clk 0:00:06]}  Qd7 {[%clk 0:00:51]} 40. Rc1 {[%clk 0:00:05]}  Ba3 {[%clk 0:00:50]} 41. Rb1 {[%clk 0:00:04]}  Bb2 {[%clk 0:00:47]} 42. Ne6+ {[%clk 0:00:03]}  Kf7 {[%clk 0:00:46]} 43. Nd4 {[%clk 0:00:04]}  Rc5 {[%clk 0:00:40]} 44. Qb6 {[%clk 0:00:03]}  Rc8 {[%clk 0:00:28]} 45. Qxa5 {[%clk 0:00:03]}  Rb8 {[%clk 0:00:18]} 46. Qa6 {[%clk 0:00:03]}  Rc8 {[%clk 0:00:17]} 47. Nc6 {[%clk 0:00:02]}  Bxc6 {[%clk 0:00:17]} 48. dxc6 {[%clk 0:00:03]}  Qxc6 {[%clk 0:00:17]} 49. Qxc6 {[%clk 0:00:03]}  Rxc6 {[%clk 0:00:18]} 50. Nc2 {[%clk 0:00:02]}  Ke6 {[%clk 0:00:17]} 51. Kf1 {[%clk 0:00:03]}  Kd5 {[%clk 0:00:16]} 52. Ke2 {[%clk 0:00:02]}  Kc4 {[%clk 0:00:15]} 53. Ne3+ {[%clk 0:00:02]}  Kb4 {[%clk 0:00:15]} 54. Nc2+ {[%clk 0:00:02]}  Ka4 {[%clk 0:00:15]} 55. Rd1 {[%clk 0:00:02]}  Re6+ {[%clk 0:00:15]} 56. Kf3 {[%clk 0:00:02]}  g5 {[%clk 0:00:13]} 57. Rd4+ {[%clk 0:00:03]}  Kb5 {[%clk 0:00:13]} 58. Rd5+ {[%clk 0:00:03]}  Kc4 {[%clk 0:00:13]} 59. Rd4+ {[%clk 0:00:03]}  Kc5 {[%clk 0:00:14]} 60. Rd3 {[%clk 0:00:01]}  Re5 {[%clk 0:00:11]} 0-1


[Site "https://www.chess.com"]